[Event "*** Titled Tuesday Blitz"]
[Site "Chess.com"]
[Date "2020.05.26"]
[Round "2"]
[White "Tejas_Rama"]
[Black "Chessy222222"]
[Result "1-0"]
[WhiteElo "2396"]
[BlackElo "2106"]
[TimeControl "180+1"]
[EndTime "10:14:40 PDT"]
[Termination "Tejas_Rama won by resignation"]

1. Nf3 {[%clk 0:02:58.8]} 1... Nf6 {[%clk 0:02:57.1]} 2. c4 {[%clk 0:02:58.5]}
2... g6 {[%clk 0:02:56.9]} 3. Nc3 {[%clk 0:02:57.7]} 3... Bg7 {[%clk 0:02:57.3]}
4. e4 {[%clk 0:02:57.4]} 4... d6 {[%clk 0:02:57.5]} 5. d4 {[%clk 0:02:57.5]}
5... O-O {[%clk 0:02:57.5]} 6. Be2 {[%clk 0:02:57.3]} 6... e5 {[%clk 0:02:57.7]}
7. O-O {[%clk 0:02:56.8]} 7... Na6 {[%clk 0:02:57.5]} 8. d5 {[%clk 0:02:49.1]}
8... Nc5 {[%clk 0:02:56.2]} 9. Qc2 {[%clk 0:02:49.2]} 9... a5 {[%clk 0:02:56]}
10. b3 {[%clk 0:02:49]} 10... Bd7 {[%clk 0:02:54.6]} 11. Bb2 {[%clk 0:02:44.2]}
11... Ne8 {[%clk 0:02:52]} 12. Nd2 {[%clk 0:02:43.2]} 12... f5 {[%clk
0:02:51.3]} 13. a3 {[%clk 0:02:43.4]} 13... Nf6 {[%clk 0:02:48.3]} 14. b4 {[%clk
0:02:39.9]} 14... Ncxe4 {[%clk 0:02:43.6]} 15. Ncxe4 {[%clk 0:02:39.2]} 15...
Nxe4 {[%clk 0:02:44.5]} 16. Nxe4 {[%clk 0:02:38.7]} 16... fxe4 {[%clk
0:02:45.2]} 17. Qxe4 {[%clk 0:02:37.3]} 17... Bf5 {[%clk 0:02:45.6]} 18. Qe3
{[%clk 0:02:37.2]} 18... axb4 {[%clk 0:02:35.8]} 19. axb4 {[%clk 0:02:37]} 19...
Qh4 {[%clk 0:02:36]} 20. g3 {[%clk 0:02:22.5]} 20... Qh3 {[%clk 0:02:32.3]} 21.
Bf3 {[%clk 0:02:16.6]} 21... Bh6 {[%clk 0:02:27.3]} 22. Qe2 {[%clk 0:02:14.6]}
22... Bd7 {[%clk 0:02:10.3]} 23. Bg2 {[%clk 0:02:00.7]} 23... Qf5 {[%clk
0:02:06.2]} 24. Be4 {[%clk 0:01:57]} 24... Qh3 {[%clk 0:02:05.3]} 25. c5 {[%clk
0:01:49.4]} 25... Bg4 {[%clk 0:01:59.5]} 26. Qd3 {[%clk 0:01:45.5]} 26... Rf5
{[%clk 0:01:21.8]} 27. Rxa8+ {[%clk 0:01:36.2]} 1-0

[Event "*** Titled Tuesday Blitz"]
[Site "Chess.com"]
[Date "2020.05.26"]
[Round "2"]
[White "marcodobrikov"]
[Black "Vesper2018"]
[Result "0-1"]
[WhiteElo "2483"]
[BlackElo "2291"]
[TimeControl "180+1"]
[EndTime "10:14:43 PDT"]
[Termination "Vesper2018 won by checkmate"]

1. e4 {[%clk 0:03:00.9]} 1... c5 {[%clk 0:02:59.8]} 2. Nf3 {[%clk 0:03:01.1]}
2... d6 {[%clk 0:03:00.3]} 3. d4 {[%clk 0:03:01.4]} 3... cxd4 {[%clk 0:03:00.7]}
4. Nxd4 {[%clk 0:03:02.3]} 4... Nf6 {[%clk 0:03:01.1]} 5. Nc3 {[%clk 0:03:02.4]}
5... a6 {[%clk 0:03:01.6]} 6. h3 {[%clk 0:03:02.6]} 6... e5 {[%clk 0:03:00.3]}
7. Nde2 {[%clk 0:03:02.5]} 7... h5 {[%clk 0:02:54.9]} 8. Bg5 {[%clk 0:03:02.3]}
8... Be6 {[%clk 0:02:54]} 9. Qd2 {[%clk 0:03:01.9]} 9... Nbd7 {[%clk 0:02:51.6]}
10. O-O-O {[%clk 0:03:01.4]} 10... Be7 {[%clk 0:02:48.1]} 11. Kb1 {[%clk
0:03:00.2]} 11... b5 {[%clk 0:02:47.7]} 12. Bxf6 {[%clk 0:02:58]} 12... Nxf6
{[%clk 0:02:47.4]} 13. a3 {[%clk 0:02:54]} 13... Rc8 {[%clk 0:02:46.5]} 14. f3
{[%clk 0:02:51.6]} 14... Qb6 {[%clk 0:02:41.5]} 15. Nc1 {[%clk 0:02:51.4]} 15...
h4 {[%clk 0:02:36.2]} 16. f4 {[%clk 0:02:51.4]} 16... O-O {[%clk 0:02:29.8]} 17.
f5 {[%clk 0:02:49.6]} 17... Bc4 {[%clk 0:02:29.9]} 18. Bxc4 {[%clk 0:02:49.3]}
18... bxc4 {[%clk 0:02:29]} 19. Nd5 {[%clk 0:02:00.1]} 19... Nxd5 {[%clk
0:02:18.2]} 20. Qxd5 {[%clk 0:02:01]} 20... Rb8 {[%clk 0:02:03.1]} 21. b3 {[%clk
0:02:01.1]} 21... Rfc8 {[%clk 0:02:02.9]} 22. Kb2 {[%clk 0:01:59.5]} 22... Bg5
{[%clk 0:01:53.5]} 23. Ne2 {[%clk 0:01:56.8]} 23... cxb3 {[%clk 0:01:52.2]} 24.
cxb3 {[%clk 0:01:56.9]} 24... Rc5 {[%clk 0:01:40.5]} 25. Qd3 {[%clk 0:01:46.9]}
25... Rb5 {[%clk 0:01:40.5]} 26. b4 {[%clk 0:01:42.9]} 26... Rxb4+ {[%clk
0:01:30.7]} 27. axb4 {[%clk 0:01:42.8]} 27... Qxb4+ {[%clk 0:01:31]} 28. Ka2
{[%clk 0:01:32]} 28... Qb2# {[%clk 0:01:31]} 0-1

[Event "*** Titled Tuesday Blitz"]
[Site "Chess.com"]
[Date "2020.05.26"]
[Round "2"]
[White "GHANDEEVAM2003"]
[Black "DortmundCity"]
[Result "1-0"]
[WhiteElo "2928"]
[BlackElo "2577"]
[TimeControl "180+1"]
[EndTime "10:14:48 PDT"]
[Termination "GHANDEEVAM2003 won by resignation"]

1. b3 {[%clk 0:03:00.9]} 1... d5 {[%clk 0:02:55.8]} 2. Bb2 {[%clk 0:03:00.7]}
2... c6 {[%clk 0:02:55.2]} 3. c4 {[%clk 0:02:58.2]} 3... e6 {[%clk 0:02:53]} 4.
Nf3 {[%clk 0:02:56.9]} 4... Nf6 {[%clk 0:02:52.3]} 5. g3 {[%clk 0:02:56.6]} 5...
Nbd7 {[%clk 0:02:52.3]} 6. Bg2 {[%clk 0:02:56.9]} 6... Bd6 {[%clk 0:02:51.4]} 7.
O-O {[%clk 0:02:57.3]} 7... O-O {[%clk 0:02:51.5]} 8. d4 {[%clk 0:02:57.9]} 8...
b6 {[%clk 0:02:49.1]} 9. Nc3 {[%clk 0:02:57.4]} 9... Bb7 {[%clk 0:02:49.1]} 10.
Nd2 {[%clk 0:02:56.6]} 10... Rc8 {[%clk 0:02:29.6]} 11. e4 {[%clk 0:02:54.7]}
11... dxe4 {[%clk 0:02:29.8]} 12. Ndxe4 {[%clk 0:02:55.6]} 12... Nxe4 {[%clk
0:02:30.3]} 13. Nxe4 {[%clk 0:02:56.5]} 13... Be7 {[%clk 0:02:25.9]} 14. Qe2
{[%clk 0:02:41.9]} 14... Qc7 {[%clk 0:02:19.1]} 15. Rfd1 {[%clk 0:02:41.4]}
15... Nf6 {[%clk 0:02:13.7]} 16. Rac1 {[%clk 0:02:39.7]} 16... Nxe4 {[%clk
0:02:11.2]} 17. Bxe4 {[%clk 0:02:36.4]} 17... Bf6 {[%clk 0:02:08.9]} 18. Qf3
{[%clk 0:02:29.2]} 18... Rfd8 {[%clk 0:02:05.2]} 19. Rc2 {[%clk 0:02:27.2]}
19... Rb8 {[%clk 0:01:56.6]} 20. c5 {[%clk 0:02:18.4]} 20... b5 {[%clk
0:01:50.7]} 21. Kg2 {[%clk 0:02:17.5]} 21... Rd7 {[%clk 0:01:50.1]} 22. h4
{[%clk 0:02:14.5]} 22... Rbd8 {[%clk 0:01:46.9]} 23. Rcd2 {[%clk 0:02:15]} 23...
b4 {[%clk 0:01:32.7]} 24. h5 {[%clk 0:02:09.5]} 24... h6 {[%clk 0:01:28.3]} 25.
Bc2 {[%clk 0:02:09.5]} 25... a5 {[%clk 0:01:25.5]} 26. Qe4 {[%clk 0:02:09]}
26... Ba6 {[%clk 0:01:25.2]} 27. Qh7+ {[%clk 0:02:03.3]} 27... Kf8 {[%clk
0:01:25.2]} 28. Re1 {[%clk 0:02:04.2]} 28... Rd5 {[%clk 0:01:23.1]} 29. Bd1
{[%clk 0:01:52.3]} 29... Rxc5 {[%clk 0:01:17.7]} 30. dxc5 {[%clk 0:01:49.5]}
30... Rxd2 {[%clk 0:01:17.1]} 31. Bxf6 {[%clk 0:01:50.2]} 31... gxf6 {[%clk
0:01:17.4]} 32. Qxh6+ {[%clk 0:01:50.3]} 1-0

[Event "*** Titled Tuesday Blitz"]
[Site "Chess.com"]
[Date "2020.05.26"]
[Round "2"]
[White "lilleper1"]
[Black "Grebeniuk-S"]
[Result "0-1"]
[WhiteElo "2714"]
[BlackElo "2501"]
[TimeControl "180+1"]
[EndTime "10:14:59 PDT"]
[Termination "Grebeniuk-S won by resignation"]

1. d4 {[%clk 0:03:00.9]} 1... f5 {[%clk 0:02:59.6]} 2. Nf3 {[%clk 0:02:59.6]}
2... Nf6 {[%clk 0:03:00.1]} 3. g3 {[%clk 0:03:00]} 3... g6 {[%clk 0:03:00.3]} 4.
Bg2 {[%clk 0:03:00.3]} 4... Bg7 {[%clk 0:03:01.2]} 5. O-O {[%clk 0:03:00.7]}
5... O-O {[%clk 0:03:01.9]} 6. c4 {[%clk 0:03:00.9]} 6... d6 {[%clk 0:03:02.3]}
7. Nc3 {[%clk 0:03:00.2]} 7... Qe8 {[%clk 0:03:02.4]} 8. d5 {[%clk 0:02:58.9]}
8... a5 {[%clk 0:03:02.2]} 9. Nd4 {[%clk 0:02:52.3]} 9... Na6 {[%clk 0:03:02.4]}
10. Rb1 {[%clk 0:02:47.7]} 10... Bd7 {[%clk 0:03:01.4]} 11. b3 {[%clk 0:02:46]}
11... Nc5 {[%clk 0:03:00.5]} 12. a3 {[%clk 0:02:44.8]} 12... c6 {[%clk
0:02:52.4]} 13. Bb2 {[%clk 0:02:43]} 13... Rc8 {[%clk 0:02:47.9]} 14. f3 {[%clk
0:02:29.1]} 14... g5 {[%clk 0:02:41.5]} 15. b4 {[%clk 0:02:28.3]} 15... axb4
{[%clk 0:02:38.7]} 16. axb4 {[%clk 0:02:28.3]} 16... Na6 {[%clk 0:02:31.8]} 17.
Qb3 {[%clk 0:02:27.2]} 17... c5 {[%clk 0:02:26.3]} 18. bxc5 {[%clk 0:02:13.8]}
18... Nxc5 {[%clk 0:02:26.5]} 19. Qc2 {[%clk 0:02:14.3]} 19... Qg6 {[%clk
0:02:07.9]} 20. Kh1 {[%clk 0:02:14.5]} 20... f4 {[%clk 0:02:04.8]} 21. Qd2
{[%clk 0:02:10.8]} 21... fxg3 {[%clk 0:02:02]} 22. hxg3 {[%clk 0:02:10.6]} 22...
Nh5 {[%clk 0:02:01.3]} 23. g4 {[%clk 0:01:52.3]} 23... Ng3+ {[%clk 0:01:59.2]}
24. Kg1 {[%clk 0:01:52.9]} 24... Nxf1 {[%clk 0:01:57.8]} 25. Rxf1 {[%clk
0:01:53.8]} 25... Be5 {[%clk 0:01:45.1]} 26. e3 {[%clk 0:01:35.1]} 26... Qd3
{[%clk 0:01:33.1]} 27. Qf2 {[%clk 0:01:25]} 27... Qxc4 {[%clk 0:01:24.5]} 28.
Nce2 {[%clk 0:01:23.6]} 28... Nd3 {[%clk 0:01:21.7]} 0-1

[Event "*** Titled Tuesday Blitz"]
[Site "Chess.com"]
[Date "2020.05.26"]
[Round "2"]
[White "BocharovD"]
[Black "M1711"]
[Result "1-0"]
[WhiteElo "2823"]
[BlackElo "2524"]
[TimeControl "180+1"]
[EndTime "10:15:20 PDT"]
[Termination "BocharovD won on time"]

1. c4 {[%clk 0:03:00.9]} 1... e5 {[%clk 0:02:44.2]} 2. g3 {[%clk 0:02:59]} 2...
c6 {[%clk 0:02:43.3]} 3. d4 {[%clk 0:02:56.8]} 3... e4 {[%clk 0:02:42.8]} 4. Bg2
{[%clk 0:02:55.8]} 4... d5 {[%clk 0:02:42.6]} 5. Nc3 {[%clk 0:02:55.8]} 5... Nf6
{[%clk 0:02:41.1]} 6. a3 {[%clk 0:02:55.4]} 6... Be6 {[%clk 0:02:38.7]} 7. Nh3
{[%clk 0:02:51.8]} 7... Nbd7 {[%clk 0:02:25.5]} 8. Nf4 {[%clk 0:02:49.5]} 8...
Bd6 {[%clk 0:02:22.8]} 9. O-O {[%clk 0:02:47.4]} 9... O-O {[%clk 0:02:22.3]} 10.
cxd5 {[%clk 0:02:42.5]} 10... cxd5 {[%clk 0:02:22]} 11. f3 {[%clk 0:02:42.5]}
11... exf3 {[%clk 0:02:18.8]} 12. Bxf3 {[%clk 0:02:43.4]} 12... Nb6 {[%clk
0:02:13.7]} 13. Qd3 {[%clk 0:02:40]} 13... Qd7 {[%clk 0:02:02.5]} 14. Nxe6
{[%clk 0:02:38.6]} 14... Qxe6 {[%clk 0:02:03.4]} 15. Bg5 {[%clk 0:02:37.7]}
15... Be7 {[%clk 0:01:23]} 16. Rae1 {[%clk 0:02:36.6]} 16... h6 {[%clk
0:00:42.3]} 17. Bxf6 {[%clk 0:02:35.6]} 17... Bxf6 {[%clk 0:00:43.2]} 18. e4
{[%clk 0:02:35.7]} 18... Rfe8 {[%clk 0:00:10.9]} 19. e5 {[%clk 0:02:19.7]} 19...
Bd8 {[%clk 0:00:10.2]} 20. Qb5 {[%clk 0:02:17.7]} 20... Bg5 {[%clk 0:00:08.2]}
21. Nxd5 {[%clk 0:02:15.9]} 21... Rac8 {[%clk 0:00:03.4]} 22. Rf2 {[%clk
0:02:08]} 1-0

[Event "*** Titled Tuesday Blitz"]
[Site "Chess.com"]
[Date "2020.05.26"]
[Round "2"]
[White "Witik"]
[Black "MrChampion_Coach"]
[Result "1-0"]
[WhiteElo "2658"]
[BlackElo "2339"]
[TimeControl "180+1"]
[EndTime "10:15:24 PDT"]
[Termination "Witik won by resignation"]

1. d4 {[%clk 0:03:00.9]} 1... Nf6 {[%clk 0:02:58.4]} 2. c4 {[%clk 0:03:00.6]}
2... g6 {[%clk 0:02:58.1]} 3. Nc3 {[%clk 0:03:00.1]} 3... Bg7 {[%clk 0:02:58.1]}
4. e4 {[%clk 0:02:59.6]} 4... d6 {[%clk 0:02:58.3]} 5. f4 {[%clk 0:02:55.8]}
5... c5 {[%clk 0:02:56.5]} 6. dxc5 {[%clk 0:02:54.8]} 6... Qa5 {[%clk
0:02:55.2]} 7. Bd3 {[%clk 0:02:54.5]} 7... Qxc5 {[%clk 0:02:38.9]} 8. Nf3 {[%clk
0:02:52.8]} 8... O-O {[%clk 0:02:33.2]} 9. Qe2 {[%clk 0:02:52.2]} 9... Nc6
{[%clk 0:02:30]} 10. Be3 {[%clk 0:02:52]} 10... Qa5 {[%clk 0:02:29.5]} 11. O-O
{[%clk 0:02:51.9]} 11... Ng4 {[%clk 0:02:21.6]} 12. Bd2 {[%clk 0:02:51.8]} 12...
Qb6+ {[%clk 0:02:20.5]} 13. Kh1 {[%clk 0:02:51.7]} 13... Nd4 {[%clk 0:01:52.9]}
14. Nxd4 {[%clk 0:02:50.6]} 14... Bxd4 {[%clk 0:01:53.8]} 15. Nd5 {[%clk
0:02:40]} 15... Qd8 {[%clk 0:01:50.8]} 16. Bc3 {[%clk 0:02:22.9]} 16... Bxc3
{[%clk 0:01:48.7]} 17. Nxc3 {[%clk 0:02:23.8]} 17... a6 {[%clk 0:01:24]} 18.
Rad1 {[%clk 0:02:21.2]} 18... Re8 {[%clk 0:01:18.1]} 19. e5 {[%clk 0:02:15.3]}
19... Qa5 {[%clk 0:01:13.4]} 20. Nd5 {[%clk 0:02:03.3]} 20... Be6 {[%clk
0:01:10]} 21. b4 {[%clk 0:01:57.9]} 21... Qa3 {[%clk 0:01:09.4]} 22. Nc7 {[%clk
0:01:54.6]} 22... dxe5 {[%clk 0:01:09]} 23. Nxe6 {[%clk 0:01:53.6]} 23... Nxh2
{[%clk 0:01:05.2]} 24. Kxh2 {[%clk 0:01:49.6]} 24... fxe6 {[%clk 0:01:03.4]} 25.
Qxe5 {[%clk 0:01:49.4]} 25... Qxb4 {[%clk 0:00:57.9]} 26. Qxe6+ {[%clk
0:01:49.4]} 26... Kh8 {[%clk 0:00:57.3]} 27. f5 {[%clk 0:01:49.2]} 27... gxf5
{[%clk 0:00:47]} 28. Qe5+ {[%clk 0:01:42.9]} 28... Kg8 {[%clk 0:00:45.9]} 29.
Bxf5 {[%clk 0:01:43.6]} 1-0

[Event "*** Titled Tuesday Blitz"]
[Site "Chess.com"]
[Date "2020.05.26"]
[Round "2"]
[White "BabyFacedAssasin"]
[Black "zubridis"]
[Result "0-1"]
[WhiteElo "2233"]
[BlackElo "2451"]
[TimeControl "180+1"]
[EndTime "10:15:27 PDT"]
[Termination "zubridis won by resignation"]

1. e4 {[%clk 0:03:00.9]} 1... c5 {[%clk 0:02:58.3]} 2. Nf3 {[%clk 0:02:59.7]}
2... Nc6 {[%clk 0:02:56.4]} 3. Bb5 {[%clk 0:02:57.4]} 3... Qb6 {[%clk
0:02:53.9]} 4. Nc3 {[%clk 0:02:55.5]} 4... e6 {[%clk 0:02:51.6]} 5. Bxc6 {[%clk
0:02:46]} 5... Qxc6 {[%clk 0:02:48.6]} 6. d4 {[%clk 0:02:46.2]} 6... cxd4 {[%clk
0:02:42.5]} 7. Nxd4 {[%clk 0:02:46.2]} 7... Qc7 {[%clk 0:02:39]} 8. O-O {[%clk
0:02:28.5]} 8... a6 {[%clk 0:02:37.6]} 9. Re1 {[%clk 0:02:26.5]} 9... d6 {[%clk
0:02:33.3]} 10. a4 {[%clk 0:01:55.7]} 10... Nf6 {[%clk 0:02:31.4]} 11. a5 {[%clk
0:01:52.4]} 11... Bd7 {[%clk 0:02:27.8]} 12. Be3 {[%clk 0:01:47.2]} 12... Be7
{[%clk 0:02:24.8]} 13. f3 {[%clk 0:01:42.8]} 13... O-O {[%clk 0:02:24.4]} 14.
Qd2 {[%clk 0:01:37.5]} 14... Rac8 {[%clk 0:02:21.8]} 15. Na4 {[%clk 0:01:30.4]}
15... Bxa4 {[%clk 0:02:05.4]} 16. Rxa4 {[%clk 0:01:29.2]} 16... d5 {[%clk
0:02:03.3]} 17. exd5 {[%clk 0:00:58]} 17... Nxd5 {[%clk 0:02:04.2]} 18. Bf2
{[%clk 0:00:55.4]} 18... Rfd8 {[%clk 0:02:02]} 19. c3 {[%clk 0:00:50]} 19... Bd6
{[%clk 0:01:54]} 20. g3 {[%clk 0:00:42.5]} 20... Bc5 {[%clk 0:01:43.8]} 21. Raa1
{[%clk 0:00:41.3]} 21... e5 {[%clk 0:01:39.2]} 22. Nf5 {[%clk 0:00:38.4]} 22...
Nf4 {[%clk 0:01:36.1]} 0-1

[Event "*** Titled Tuesday Blitz"]
[Site "Chess.com"]
[Date "2020.05.26"]
[Round "2"]
[White "Msb2"]
[Black "antoszu"]
[Result "1-0"]
[WhiteElo "2871"]
[BlackElo "2507"]
[TimeControl "180+1"]
[EndTime "10:15:31 PDT"]
[Termination "Msb2 won by checkmate"]

1. d4 {[%clk 0:03:00.9]} 1... Nf6 {[%clk 0:02:57.2]} 2. c4 {[%clk 0:02:55.4]}
2... e6 {[%clk 0:02:56.2]} 3. Nc3 {[%clk 0:02:56.1]} 3... Bb4 {[%clk 0:02:53.5]}
4. e3 {[%clk 0:02:56.7]} 4... O-O {[%clk 0:02:52.3]} 5. Bd2 {[%clk 0:02:57.2]}
5... d5 {[%clk 0:02:50.6]} 6. Nf3 {[%clk 0:02:57.2]} 6... b6 {[%clk 0:02:50.6]}
7. cxd5 {[%clk 0:02:57.4]} 7... exd5 {[%clk 0:02:50.1]} 8. Bd3 {[%clk
0:02:58.3]} 8... Bb7 {[%clk 0:02:50.1]} 9. O-O {[%clk 0:02:58]} 9... Nbd7 {[%clk
0:02:47]} 10. Rc1 {[%clk 0:02:57.7]} 10... Be7 {[%clk 0:02:45.4]} 11. Ne5 {[%clk
0:02:53.8]} 11... c5 {[%clk 0:02:43.7]} 12. f4 {[%clk 0:02:53.5]} 12... Re8
{[%clk 0:02:36]} 13. Qf3 {[%clk 0:02:47.7]} 13... a6 {[%clk 0:02:18.8]} 14. Kh1
{[%clk 0:02:45.8]} 14... Nf8 {[%clk 0:02:18.8]} 15. Be1 {[%clk 0:02:43.5]} 15...
b5 {[%clk 0:02:07.6]} 16. Bh4 {[%clk 0:02:40.6]} 16... Qb6 {[%clk 0:02:04.3]}
17. Bxf6 {[%clk 0:02:33.2]} 17... Bxf6 {[%clk 0:02:01.3]} 18. Nxd5 {[%clk
0:02:32]} 18... Bxd5 {[%clk 0:01:49]} 19. Qxd5 {[%clk 0:02:32.9]} 19... cxd4
{[%clk 0:01:36.2]} 20. Qxf7+ {[%clk 0:01:49]} 20... Kh8 {[%clk 0:01:35.5]} 21.
Rc6 {[%clk 0:01:49.9]} 21... Qd8 {[%clk 0:01:20.8]} 22. Qh5 {[%clk 0:01:17]}
22... Bxe5 {[%clk 0:01:00.9]} 23. fxe5 {[%clk 0:01:17.9]} 23... h6 {[%clk
0:00:49.5]} 24. Rxh6+ {[%clk 0:01:11.4]} 24... gxh6 {[%clk 0:00:49.2]} 25. Qxh6+
{[%clk 0:01:12.3]} 25... Kg8 {[%clk 0:00:49.7]} 26. Rxf8+ {[%clk 0:01:12.7]}
26... Rxf8 {[%clk 0:00:50.2]} 27. Qh7# {[%clk 0:01:13.6]} 1-0

[Event "*** Titled Tuesday Blitz"]
[Site "Chess.com"]
[Date "2020.05.26"]
[Round "2"]
[White "CHESSMASTER759"]
[Black "Ladislav1969"]
[Result "1-0"]
[WhiteElo "2646"]
[BlackElo "2316"]
[TimeControl "180+1"]
[EndTime "10:15:34 PDT"]
[Termination "CHESSMASTER759 won by resignation"]

1. e4 {[%clk 0:03:00.9]} 1... c5 {[%clk 0:02:59.4]} 2. Nf3 {[%clk 0:03:00.4]}
2... e6 {[%clk 0:02:59.7]} 3. d4 {[%clk 0:02:59.5]} 3... cxd4 {[%clk 0:03:00.6]}
4. Nxd4 {[%clk 0:03:00.1]} 4... a6 {[%clk 0:03:00.8]} 5. Nc3 {[%clk 0:02:59.8]}
5... b5 {[%clk 0:02:59.9]} 6. Bd3 {[%clk 0:02:57.3]} 6... Bb7 {[%clk 0:02:57.1]}
7. O-O {[%clk 0:02:56.4]} 7... Nc6 {[%clk 0:02:27.1]} 8. Nxc6 {[%clk 0:02:53.3]}
8... Bxc6 {[%clk 0:02:26.8]} 9. Qe2 {[%clk 0:02:54.2]} 9... Nf6 {[%clk
0:02:08.1]} 10. a3 {[%clk 0:02:50.1]} 10... d6 {[%clk 0:02:04.9]} 11. Bd2 {[%clk
0:02:47.8]} 11... Be7 {[%clk 0:02:04.4]} 12. Rae1 {[%clk 0:02:47.1]} 12... O-O
{[%clk 0:02:03.8]} 13. f4 {[%clk 0:02:41.8]} 13... e5 {[%clk 0:02:04]} 14. Rf3
{[%clk 0:02:23.6]} 14... exf4 {[%clk 0:01:55.1]} 15. Bxf4 {[%clk 0:02:22.2]}
15... Ng4 {[%clk 0:01:45.6]} 16. Nd5 {[%clk 0:02:22.1]} 16... Ne5 {[%clk
0:01:35.1]} 17. Rh3 {[%clk 0:02:15.6]} 17... Bxd5 {[%clk 0:01:24.8]} 18. exd5
{[%clk 0:02:11.3]} 18... Nxd3 {[%clk 0:01:24.3]} 19. Qxd3 {[%clk 0:01:59.1]}
19... g6 {[%clk 0:01:23.6]} 20. Bh6 {[%clk 0:01:53.2]} 20... Re8 {[%clk
0:01:22.5]} 21. Rhe3 {[%clk 0:01:54.1]} 21... Qd7 {[%clk 0:01:20.1]} 22. Qe2
{[%clk 0:01:51.8]} 22... Ra7 {[%clk 0:01:07.6]} 23. Bg5 {[%clk 0:01:51.2]} 23...
f6 {[%clk 0:01:02.3]} 24. Bxf6 {[%clk 0:01:46.9]} 24... Kf7 {[%clk 0:00:58.4]}
25. Bxe7 {[%clk 0:01:09.8]} 25... Rxe7 {[%clk 0:00:58.1]} 26. Rxe7+ {[%clk
0:01:10.7]} 26... Qxe7 {[%clk 0:00:57.9]} 27. Qf2+ {[%clk 0:01:11.3]} 1-0

[Event "*** Titled Tuesday Blitz"]
[Site "Chess.com"]
[Date "2020.05.26"]
[Round "2"]
[White "nurmiTV"]
[Black "HrvojeZagreb"]
[Result "1-0"]
[WhiteElo "2514"]
[BlackElo "2173"]
[TimeControl "180+1"]
[EndTime "10:15:35 PDT"]
[Termination "nurmiTV won by resignation"]

1. c4 {[%clk 0:03:00]} 1... e6 {[%clk 0:02:59.4]} 2. Nc3 {[%clk 0:03:00.2]} 2...
d5 {[%clk 0:02:58.2]} 3. e3 {[%clk 0:03:00.4]} 3... c5 {[%clk 0:02:54.5]} 4. Nf3
{[%clk 0:03:00]} 4... Nc6 {[%clk 0:02:54.6]} 5. cxd5 {[%clk 0:02:59.8]} 5...
exd5 {[%clk 0:02:54.2]} 6. d4 {[%clk 0:03:00.3]} 6... cxd4 {[%clk 0:02:51.7]} 7.
Nxd4 {[%clk 0:02:59.4]} 7... Bb4 {[%clk 0:02:45.4]} 8. Be2 {[%clk 0:02:49.5]}
8... Nge7 {[%clk 0:02:43.7]} 9. O-O {[%clk 0:02:45.7]} 9... O-O {[%clk
0:02:43.3]} 10. Nc2 {[%clk 0:02:39.4]} 10... Bd6 {[%clk 0:02:41.6]} 11. b3
{[%clk 0:02:29]} 11... Bf5 {[%clk 0:02:35.6]} 12. Bb2 {[%clk 0:02:25.7]} 12...
Bxc2 {[%clk 0:02:12.7]} 13. Qxc2 {[%clk 0:02:23.1]} 13... d4 {[%clk 0:02:13.3]}
14. Nb5 {[%clk 0:02:01.1]} 14... dxe3 {[%clk 0:02:12.5]} 15. Rad1 {[%clk
0:01:55.6]} 15... exf2+ {[%clk 0:02:11.8]} 16. Kh1 {[%clk 0:01:55.2]} 16... Nc8
{[%clk 0:02:02.9]} 17. Nxd6 {[%clk 0:01:42.2]} 17... Nxd6 {[%clk 0:02:00.6]} 18.
Qc3 {[%clk 0:01:23.5]} 18... f6 {[%clk 0:01:53.5]} 19. Bc4+ {[%clk 0:00:53.1]}
19... Kh8 {[%clk 0:01:46.1]} 20. Ba3 {[%clk 0:00:31.8]} 20... Ne4 {[%clk
0:01:45.7]} 21. Rxd8 {[%clk 0:00:28.2]} 21... Nxc3 {[%clk 0:01:45.2]} 22. Rxf8+
{[%clk 0:00:28]} 22... Rxf8 {[%clk 0:01:41.5]} 23. Bxf8 {[%clk 0:00:28.9]} 23...
Ne4 {[%clk 0:01:34.5]} 24. Bd5 {[%clk 0:00:28.1]} 24... Nc3 {[%clk 0:01:27.2]}
25. Bxc6 {[%clk 0:00:28]} 25... bxc6 {[%clk 0:01:28.1]} 26. Rxf2 {[%clk
0:00:28.3]} 1-0

[Event "*** Titled Tuesday Blitz"]
[Site "Chess.com"]
[Date "2020.05.26"]
[Round "2"]
[White "Lucas_Tomiello"]
[Black "bsnsun"]
[Result "1-0"]
[WhiteElo "2288"]
[BlackElo "2467"]
[TimeControl "180+1"]
[EndTime "10:15:37 PDT"]
[Termination "Lucas_Tomiello won by resignation"]

1. e4 {[%clk 0:03:00.9]} 1... c5 {[%clk 0:03:00.1]} 2. Nf3 {[%clk 0:03:00.4]}
2... d6 {[%clk 0:03:00.4]} 3. d4 {[%clk 0:03:00.4]} 3... cxd4 {[%clk 0:03:00.5]}
4. Nxd4 {[%clk 0:03:01.3]} 4... Nf6 {[%clk 0:03:00.6]} 5. Nc3 {[%clk 0:03:01.9]}
5... a6 {[%clk 0:03:01.5]} 6. Bg5 {[%clk 0:03:02.1]} 6... Nbd7 {[%clk
0:03:00.9]} 7. Qe2 {[%clk 0:03:01.7]} 7... h6 {[%clk 0:02:50.3]} 8. Bh4 {[%clk
0:03:01.9]} 8... g6 {[%clk 0:02:50.6]} 9. f4 {[%clk 0:02:59.9]} 9... e5 {[%clk
0:02:50.3]} 10. fxe5 {[%clk 0:02:58.7]} 10... dxe5 {[%clk 0:02:50.1]} 11. O-O-O
{[%clk 0:02:58.9]} 11... Qc7 {[%clk 0:02:48.9]} 12. Nb3 {[%clk 0:02:57.2]} 12...
b5 {[%clk 0:02:46.8]} 13. Nd5 {[%clk 0:02:55.9]} 13... Nxd5 {[%clk 0:02:45.1]}
14. exd5 {[%clk 0:02:56.8]} 14... Bd6 {[%clk 0:02:45.1]} 15. Qd2 {[%clk
0:02:51]} 15... f5 {[%clk 0:02:45.1]} 16. Na5 {[%clk 0:02:34.7]} 16... Kf7
{[%clk 0:02:38.3]} 17. g4 {[%clk 0:02:33.4]} 17... f4 {[%clk 0:02:37.4]} 18. Bg2
{[%clk 0:02:15.6]} 18... Nc5 {[%clk 0:02:18.9]} 19. h3 {[%clk 0:02:01.8]} 19...
Bd7 {[%clk 0:02:13.5]} 20. Rhe1 {[%clk 0:01:58.4]} 20... Rhe8 {[%clk 0:02:11.5]}
21. Nc6 {[%clk 0:01:53.8]} 21... Kg7 {[%clk 0:01:50.4]} 22. g5 {[%clk
0:01:42.7]} 22... h5 {[%clk 0:01:49.8]} 23. Bf2 {[%clk 0:01:40.6]} 23... Bf5
{[%clk 0:01:47]} 24. Bxc5 {[%clk 0:01:34.6]} 24... Bxc5 {[%clk 0:01:46.6]} 25.
d6 {[%clk 0:01:34.9]} 25... Qd7 {[%clk 0:01:22]} 26. Nxe5 {[%clk 0:01:22]} 26...
Rxe5 {[%clk 0:01:18.6]} 27. Rxe5 {[%clk 0:01:20.2]} 27... Be3 {[%clk 0:01:17.8]}
28. Rxe3 {[%clk 0:01:19.9]} 28... fxe3 {[%clk 0:01:17.6]} 29. Qd4+ {[%clk
0:01:20.4]} 29... Kh7 {[%clk 0:01:17.1]} 30. Bxa8 {[%clk 0:01:20.5]} 30... e2
{[%clk 0:01:17.1]} 31. Re1 {[%clk 0:01:18.4]} 31... Qe6 {[%clk 0:01:15.2]} 32.
d7 {[%clk 0:01:13.7]} 32... Qxa2 {[%clk 0:01:12.2]} 33. d8=Q {[%clk 0:01:10.6]}
1-0